[Event "Live Chess"]
[Site "Chess.com"]
[Date "2024.06.02"]
[Round "-"]
[White "mrsmarple1968"]
[Black "GwaryTek"]
[Result "0-1"]
[WhiteElo "1716"]
[BlackElo "1887"]
[TimeControl "300"]
[EndTime "8:29:07 PDT"]
[Termination "GwaryTek won by resignation"]

1. e4 {[%clk 0:04:56.2]} 1... Nf6 {[%clk 0:04:59.9]} 2. Nc3 {[%clk 0:04:54.1]}
2... d5 {[%clk 0:04:58.5]} 3. exd5 {[%clk 0:04:52.5]} 3... Nxd5 {[%clk
0:04:57.2]} 4. Nxd5 {[%clk 0:04:51.4]} 4... Qxd5 {[%clk 0:04:51.4]} 5. d3 {[%clk
0:04:50]} 5... Nc6 {[%clk 0:04:49]} 6. Nf3 {[%clk 0:04:48.7]} 6... e5 {[%clk
0:04:47.8]} 7. Be2 {[%clk 0:04:47.5]} 7... Be6 {[%clk 0:04:46.5]} 8. O-O {[%clk
0:04:45]} 8... f6 {[%clk 0:04:45.5]} 9. a3 {[%clk 0:04:42]} 9... Bc5 {[%clk
0:04:41]} 10. b4 {[%clk 0:04:34.3]} 10... Be7 {[%clk 0:04:39.7]} 11. Be3 {[%clk
0:04:20.3]} 11... a6 {[%clk 0:04:32.5]} 12. c4 {[%clk 0:04:02.3]} 12... Qd7
{[%clk 0:04:28.2]} 13. b5 {[%clk 0:03:49.8]} 13... axb5 {[%clk 0:04:25]} 14.
cxb5 {[%clk 0:03:48.5]} 14... Nd8 {[%clk 0:04:14.9]} 15. d4 {[%clk 0:03:37.4]}
15... e4 {[%clk 0:04:04.4]} 16. Ne1 {[%clk 0:03:35.1]} 16... O-O {[%clk
0:04:02.1]} 17. Qc2 {[%clk 0:03:24]} 17... f5 {[%clk 0:03:57.1]} 18. f3 {[%clk
0:03:14.3]} 18... f4 {[%clk 0:03:43.6]} 19. Bc1 {[%clk 0:02:57.6]} 19... Qxd4+
{[%clk 0:03:39.4]} 0-1

[Event "Live Chess"]
[Site "Chess.com"]
[Date "2024.06.02"]
[Round "-"]
[White "bobby_jamesFischer86"]
[Black "JanMur7"]
[Result "0-1"]
[WhiteElo "1637"]
[BlackElo "2285"]
[TimeControl "300"]
[EndTime "8:29:21 PDT"]
[Termination "JanMur7 won by resignation"]

1. d4 {[%clk 0:04:33.3]} 1... e5 {[%clk 0:04:59.9]} 2. dxe5 {[%clk 0:04:31.9]}
2... Nc6 {[%clk 0:04:59.1]} 3. Nf3 {[%clk 0:04:27.1]} 3... d6 {[%clk 0:04:57.3]}
4. Bg5 {[%clk 0:04:25]} 4... f6 {[%clk 0:04:52.5]} 5. exf6 {[%clk 0:04:21.8]}
5... Nxf6 {[%clk 0:04:52.4]} 6. c3 {[%clk 0:04:20]} 6... Be7 {[%clk 0:04:51.2]}
7. Nbd2 {[%clk 0:04:18.7]} 7... O-O {[%clk 0:04:49.1]} 8. g3 {[%clk 0:04:11]}
8... Ng4 {[%clk 0:04:44.1]} 9. Bxe7 {[%clk 0:04:08.8]} 9... Qxe7 {[%clk
0:04:44]} 10. Bg2 {[%clk 0:04:07.7]} 10... Re8 {[%clk 0:04:43.3]} 11. O-O {[%clk
0:04:04.3]} 11... Qxe2 {[%clk 0:04:41.8]} 12. Qxe2 {[%clk 0:04:03.2]} 12... Rxe2
{[%clk 0:04:41.7]} 13. Rad1 {[%clk 0:03:54.8]} 13... Be6 {[%clk 0:04:36.8]} 14.
h3 {[%clk 0:03:53]} 14... Nge5 {[%clk 0:04:31.9]} 15. Nxe5 {[%clk 0:03:51]}
15... Nxe5 {[%clk 0:04:30.2]} 16. Bxb7 {[%clk 0:03:47.1]} 16... Rb8 {[%clk
0:04:28.7]} 17. Ba6 {[%clk 0:03:39.1]} 17... Rxd2 {[%clk 0:04:22.6]} 18. Rxd2
{[%clk 0:03:34]} 18... Nf3+ {[%clk 0:04:21.3]} 19. Kg2 {[%clk 0:03:29.1]} 19...
Nxd2 {[%clk 0:04:20.1]} 20. Re1 {[%clk 0:03:26.9]} 20... Ne4 {[%clk 0:04:16.2]}
21. Bd3 {[%clk 0:03:17.8]} 21... Nc5 {[%clk 0:04:14.4]} 22. Bf1 {[%clk
0:03:13.6]} 22... Re8 {[%clk 0:04:11.9]} 23. Bc4 {[%clk 0:03:08.1]} 23... Kf7
{[%clk 0:04:06.3]} 24. Kg1 {[%clk 0:03:05.5]} 24... Bxc4 {[%clk 0:04:04.9]} 0-1

[Event "Live Chess"]
[Site "Chess.com"]
[Date "2024.06.02"]
[Round "-"]
[White "RichardABates"]
[Black "DylanMeyer1"]
[Result "1-0"]
[WhiteElo "2374"]
[BlackElo "1702"]
[TimeControl "300"]
[EndTime "8:29:26 PDT"]
[Termination "RichardABates won by resignation"]

1. d4 {[%clk 0:04:57.7]} 1... d5 {[%clk 0:04:59.9]} 2. c4 {[%clk 0:04:56.2]}
2... dxc4 {[%clk 0:04:58.7]} 3. e4 {[%clk 0:04:54.6]} 3... e6 {[%clk 0:04:58.6]}
4. Bxc4 {[%clk 0:04:50.4]} 4... b6 {[%clk 0:04:56.8]} 5. Nf3 {[%clk 0:04:47.2]}
5... Bb7 {[%clk 0:04:56.3]} 6. Nc3 {[%clk 0:04:45.1]} 6... Ne7 {[%clk
0:04:55.4]} 7. O-O {[%clk 0:04:43.1]} 7... Ng6 {[%clk 0:04:55]} 8. Be3 {[%clk
0:04:34.1]} 8... Be7 {[%clk 0:04:54.4]} 9. Qe2 {[%clk 0:04:32.2]} 9... O-O
{[%clk 0:04:54]} 10. Rad1 {[%clk 0:04:30.3]} 10... c6 {[%clk 0:04:51.4]} 11. d5
{[%clk 0:04:28.2]} 11... exd5 {[%clk 0:04:50.2]} 12. exd5 {[%clk 0:04:26.8]}
12... cxd5 {[%clk 0:04:50.1]} 13. Bxd5 {[%clk 0:04:21.1]} 13... Bxd5 {[%clk
0:04:46.6]} 14. Rxd5 {[%clk 0:04:19.4]} 14... Qc7 {[%clk 0:04:40.7]} 15. Rfd1
{[%clk 0:04:16.6]} 15... Nc6 {[%clk 0:04:09.2]} 16. Rd7 {[%clk 0:04:10.4]} 16...
Qc8 {[%clk 0:04:08.4]} 17. Nd5 {[%clk 0:03:59.1]} 17... Bc5 {[%clk 0:04:04.4]}
18. Bxc5 {[%clk 0:03:56]} 18... bxc5 {[%clk 0:04:02]} 19. Rc7 {[%clk 0:03:46.9]}
19... Qa6 {[%clk 0:03:56.7]} 20. Qxa6 {[%clk 0:03:44.3]} 1-0

[Event "Live Chess"]
[Site "Chess.com"]
[Date "2024.06.02"]
[Round "-"]
[White "mychess51"]
[Black "lateforthesky"]
[Result "0-1"]
[WhiteElo "1704"]
[BlackElo "2072"]
[TimeControl "300"]
[EndTime "8:29:42 PDT"]
[Termination "lateforthesky won on time"]

1. d4 {[%clk 0:04:54.1]} 1... Nf6 {[%clk 0:04:58.1]} 2. Nf3 {[%clk 0:04:52.4]}
2... g6 {[%clk 0:04:57.2]} 3. e3 {[%clk 0:04:51.7]} 3... Bg7 {[%clk 0:04:56.4]}
4. Bd3 {[%clk 0:04:51.3]} 4... d6 {[%clk 0:04:53.5]} 5. h4 {[%clk 0:04:51.2]}
5... h5 {[%clk 0:04:51.2]} 6. c4 {[%clk 0:04:51.1]} 6... c5 {[%clk 0:04:49.3]}
7. dxc5 {[%clk 0:04:40.1]} 7... dxc5 {[%clk 0:04:47.6]} 8. Qc2 {[%clk
0:04:37.2]} 8... O-O {[%clk 0:04:33.5]} 9. Nc3 {[%clk 0:04:34.4]} 9... Nc6
{[%clk 0:04:31.5]} 10. a3 {[%clk 0:04:28.1]} 10... Bg4 {[%clk 0:04:22.8]} 11.
Bd2 {[%clk 0:04:13.8]} 11... Qd7 {[%clk 0:03:57.4]} 12. O-O-O {[%clk 0:04:00.6]}
12... Rad8 {[%clk 0:03:56]} 13. Be2 {[%clk 0:03:23]} 13... Qc8 {[%clk 0:03:16]}
14. Ng5 {[%clk 0:03:01.7]} 14... Bxe2 {[%clk 0:03:13.6]} 15. Nxe2 {[%clk
0:03:00.1]} 15... Ne5 {[%clk 0:02:56.3]} 16. Bc3 {[%clk 0:02:26.4]} 16... Qc7
{[%clk 0:02:48.3]} 17. Nf4 {[%clk 0:01:52.7]} 17... Neg4 {[%clk 0:02:15.4]} 18.
Rxd8 {[%clk 0:01:38.6]} 18... Qxd8 {[%clk 0:02:01.7]} 19. Rd1 {[%clk 0:01:31.7]}
19... Qc7 {[%clk 0:02:00.3]} 20. Rd3 {[%clk 0:01:18]} 20... e5 {[%clk
0:01:58.8]} 21. Nd5 {[%clk 0:01:09.5]} 21... Nxd5 {[%clk 0:01:56.2]} 22. Rxd5
{[%clk 0:01:05.4]} 22... Rd8 {[%clk 0:01:39.2]} 23. Qd2 {[%clk 0:00:57.8]} 23...
Rxd5 {[%clk 0:01:36.4]} 24. cxd5 {[%clk 0:00:56.5]} 24... Qd7 {[%clk 0:01:20.2]}
25. f3 {[%clk 0:00:48.4]} 25... Nh6 {[%clk 0:01:18.3]} 26. e4 {[%clk 0:00:46.5]}
26... b5 {[%clk 0:01:07.4]} 27. Qe3 {[%clk 0:00:40.1]} 27... Qd6 {[%clk
0:01:02.8]} 28. g3 {[%clk 0:00:32.1]} 28... Kh8 {[%clk 0:00:56.2]} 29. f4 {[%clk
0:00:21.9]} 29... exf4 {[%clk 0:00:42.7]} 30. gxf4 {[%clk 0:00:17.2]} 30... Bxc3
{[%clk 0:00:38.8]} 31. Qxc3+ {[%clk 0:00:14.6]} 31... Kg8 {[%clk 0:00:38.1]} 32.
Qe3 {[%clk 0:00:10.3]} 32... Ng4 {[%clk 0:00:35.3]} 33. Qe2 {[%clk 0:00:06.7]}
33... Qxf4+ {[%clk 0:00:33.5]} 34. Kb1 {[%clk 0:00:02.2]} 34... a6 {[%clk
0:00:19.4]} 35. Qxb5 {[%clk 0:00:02.1]} 35... axb5 {[%clk 0:00:17.6]} 36. d6
{[%clk 0:00:01.4]} 36... Qxd6 {[%clk 0:00:15.8]} 37. e5 {[%clk 0:00:01.3]} 37...
Qxe5 {[%clk 0:00:14.4]} 38. Ka2 {[%clk 0:00:01.2]} 38... Qd5+ {[%clk 0:00:13.2]}
0-1

[Event "Live Chess"]
[Site "Chess.com"]
[Date "2024.06.02"]
[Round "-"]
[White "KyryloPoluliakh"]
[Black "PhilMaybury64"]
[Result "0-1"]
[WhiteElo "1520"]
[BlackElo "1514"]
[TimeControl "300"]
[EndTime "8:30:18 PDT"]
[Termination "PhilMaybury64 won by checkmate"]

1. c4 {[%clk 0:04:58.5]} 1... e5 {[%clk 0:04:57.9]} 2. Nc3 {[%clk 0:04:56.1]}
2... Nc6 {[%clk 0:04:56.3]} 3. g3 {[%clk 0:04:54.6]} 3... Bc5 {[%clk 0:04:54.9]}
4. Bg2 {[%clk 0:04:53.6]} 4... a6 {[%clk 0:04:51.2]} 5. e3 {[%clk 0:04:52.6]}
5... d6 {[%clk 0:04:48.5]} 6. Nge2 {[%clk 0:04:51.9]} 6... Ba7 {[%clk
0:04:46.8]} 7. d4 {[%clk 0:04:50.3]} 7... Bd7 {[%clk 0:04:33.4]} 8. O-O {[%clk
0:04:44.6]} 8... h5 {[%clk 0:04:31.7]} 9. h4 {[%clk 0:04:34.9]} 9... g5 {[%clk
0:04:30.2]} 10. f4 {[%clk 0:04:16.9]} 10... gxf4 {[%clk 0:04:17]} 11. exf4
{[%clk 0:04:14.8]} 11... Nxd4 {[%clk 0:04:12.8]} 12. Nxd4 {[%clk 0:04:09.2]}
12... Bxd4+ {[%clk 0:04:10.1]} 13. Kh1 {[%clk 0:03:59]} 13... Nh6 {[%clk
0:03:52.5]} 14. fxe5 {[%clk 0:03:54.5]} 14... dxe5 {[%clk 0:03:40.6]} 15. Bxb7
{[%clk 0:03:49.7]} 15... Rb8 {[%clk 0:03:37.3]} 16. Bd5 {[%clk 0:03:47.6]} 16...
Be6 {[%clk 0:03:17.2]} 17. Bxe6 {[%clk 0:03:43.2]} 17... fxe6 {[%clk 0:03:14.9]}
18. Bxh6 {[%clk 0:03:40.4]} 18... Rxh6 {[%clk 0:03:12]} 19. Qf3 {[%clk 0:03:37]}
19... Qe7 {[%clk 0:03:07.2]} 20. Ne4 {[%clk 0:03:30.3]} 20... Rxb2 {[%clk
0:03:02.5]} 21. Nf6+ {[%clk 0:03:21.9]} 21... Rxf6 {[%clk 0:02:50.3]} 22. Qxf6
{[%clk 0:03:18.2]} 22... Qxf6 {[%clk 0:02:46.4]} 23. Rxf6 {[%clk 0:03:17.4]}
23... Ke7 {[%clk 0:02:42.3]} 24. Rh6 {[%clk 0:03:15]} 24... Rc2 {[%clk 0:02:34]}
25. Rxh5 {[%clk 0:03:12.2]} 25... Bxa1 {[%clk 0:02:31.2]} 26. g4 {[%clk
0:03:08.8]} 26... Rxc4 {[%clk 0:02:28.4]} 27. g5 {[%clk 0:03:07.4]} 27... Kf7
{[%clk 0:02:25]} 28. Rh7+ {[%clk 0:03:02.8]} 28... Kg6 {[%clk 0:02:23.2]} 29.
Rh6+ {[%clk 0:03:01.7]} 29... Kf5 {[%clk 0:02:19.7]} 30. Rf6+ {[%clk 0:02:59.9]}
30... Kg4 {[%clk 0:02:17]} 31. g6 {[%clk 0:02:58.2]} 31... Kxh4 {[%clk
0:02:10.4]} 32. Rxe6 {[%clk 0:02:53.5]} 32... Rg4 {[%clk 0:02:02.3]} 33. Rxa6
{[%clk 0:02:48.6]} 33... Kh3 {[%clk 0:01:58.8]} 34. Ra3+ {[%clk 0:02:42.5]}
34... Kh4 {[%clk 0:01:54.9]} 35. Ra6 {[%clk 0:02:39.5]} 35... Bd4 {[%clk
0:01:50.9]} 36. a4 {[%clk 0:02:31.9]} 36... Kh3 {[%clk 0:01:48.4]} 37. g7 {[%clk
0:02:28.2]} 37... Rg1# {[%clk 0:01:46.8]} 0-1

[Event "Live Chess"]
[Site "Chess.com"]
[Date "2024.06.02"]
[Round "-"]
[White "goldinspiredphoenix"]
[Black "kylet1990"]
[Result "1-0"]
[WhiteElo "1478"]
[BlackElo "781"]
[TimeControl "300"]
[EndTime "8:30:19 PDT"]
[Termination "goldinspiredphoenix won by resignation"]

1. d4 {[%clk 0:04:55.8]} 1... c6 {[%clk 0:04:58.9]} 2. c4 {[%clk 0:04:53.7]}
2... d5 {[%clk 0:04:57.9]} 3. Nc3 {[%clk 0:04:52.5]} 3... Bf5 {[%clk 0:04:56.7]}
4. e3 {[%clk 0:04:51.7]} 4... e6 {[%clk 0:04:55.1]} 5. Nf3 {[%clk 0:04:49.6]}
5... Nf6 {[%clk 0:04:52.9]} 6. Be2 {[%clk 0:04:44.4]} 6... Ne4 {[%clk
0:04:48.8]} 7. Bd2 {[%clk 0:04:39.6]} 7... Nxc3 {[%clk 0:04:46.2]} 8. Bxc3
{[%clk 0:04:37.4]} 8... Bd6 {[%clk 0:04:44.5]} 9. O-O {[%clk 0:04:21.2]} 9...
O-O {[%clk 0:04:40.2]} 10. cxd5 {[%clk 0:04:17.4]} 10... cxd5 {[%clk 0:04:38]}
11. a3 {[%clk 0:04:11.2]} 11... Nc6 {[%clk 0:04:36.2]} 12. Qb3 {[%clk
0:04:08.5]} 12... b6 {[%clk 0:04:32.6]} 13. Bb5 {[%clk 0:03:50.5]} 13... Qd7
{[%clk 0:04:23.3]} 14. Bb4 {[%clk 0:03:45.4]} 14... Bxb4 {[%clk 0:04:17.8]} 15.
axb4 {[%clk 0:03:44.3]} 15... Qc7 {[%clk 0:04:12.4]} 16. Rfc1 {[%clk 0:03:40.9]}
16... Rac8 {[%clk 0:04:06.6]} 17. Rxc6 {[%clk 0:03:23.2]} 17... Qb7 {[%clk
0:04:04.1]} 18. Rxc8 {[%clk 0:03:21.2]} 18... Qxc8 {[%clk 0:04:03.1]} 19. h3
{[%clk 0:03:12]} 19... Be4 {[%clk 0:03:59.7]} 20. Nd2 {[%clk 0:03:08.6]} 20...
a6 {[%clk 0:03:52.3]} 21. Nxe4 {[%clk 0:03:06.1]} 21... axb5 {[%clk 0:03:48]}
22. Nc3 {[%clk 0:03:04.5]} 22... f5 {[%clk 0:03:45.1]} 23. Nxb5 {[%clk 0:03:03]}
23... Qd7 {[%clk 0:03:43]} 24. Nc3 {[%clk 0:03:01.4]} 24... f4 {[%clk
0:03:40.1]} 25. Rf1 {[%clk 0:02:56.9]} 25... fxe3 {[%clk 0:03:37.8]} 26. fxe3
{[%clk 0:02:55.3]} 26... Re8 {[%clk 0:03:32.6]} 27. Qa4 {[%clk 0:02:43.9]} 27...
Qe7 {[%clk 0:03:29.9]} 28. e4 {[%clk 0:02:38.7]} 28... dxe4 {[%clk 0:03:27.5]}
29. Nxe4 {[%clk 0:02:36.3]} 29... h6 {[%clk 0:03:18.5]} 30. Qc6 {[%clk
0:02:12.7]} 30... Qxb4 {[%clk 0:03:05.5]} 31. Qxe8+ {[%clk 0:02:09.2]} 1-0

[Event "Live Chess"]
[Site "Chess.com"]
[Date "2024.06.02"]
[Round "-"]
[White "gobbles19"]
[Black "willc-h99"]
[Result "1-0"]
[WhiteElo "2235"]
[BlackElo "2559"]
[TimeControl "300"]
[EndTime "8:30:27 PDT"]
[Termination "gobbles19 won by resignation"]

1. e4 {[%clk 0:04:57.1]} 1... g6 {[%clk 0:04:56.4]} 2. d4 {[%clk 0:04:55.8]}
2... Bg7 {[%clk 0:04:54.4]} 3. Nc3 {[%clk 0:04:54.8]} 3... a6 {[%clk 0:04:53.9]}
4. a4 {[%clk 0:04:52.4]} 4... d6 {[%clk 0:04:51.2]} 5. Be2 {[%clk 0:04:51.1]}
5... Nd7 {[%clk 0:04:46.4]} 6. Nf3 {[%clk 0:04:50.1]} 6... e6 {[%clk 0:04:37.1]}
7. O-O {[%clk 0:04:47.5]} 7... h6 {[%clk 0:04:36.4]} 8. Be3 {[%clk 0:04:45]}
8... b6 {[%clk 0:04:35.1]} 9. Nd2 {[%clk 0:04:35.8]} 9... Bb7 {[%clk 0:04:34.2]}
10. f4 {[%clk 0:04:34.6]} 10... Ne7 {[%clk 0:04:32.6]} 11. Nf3 {[%clk
0:04:33.4]} 11... O-O {[%clk 0:04:29.8]} 12. Qd2 {[%clk 0:04:32.4]} 12... Kh7
{[%clk 0:04:28.4]} 13. Bd3 {[%clk 0:04:23]} 13... f5 {[%clk 0:04:24]} 14. Rae1
{[%clk 0:04:12.8]} 14... Nf6 {[%clk 0:04:17.3]} 15. e5 {[%clk 0:04:03.7]} 15...
Ne4 {[%clk 0:04:10]} 16. Bxe4 {[%clk 0:03:59.9]} 16... fxe4 {[%clk 0:04:08.6]}
17. Nh4 {[%clk 0:03:56.2]} 17... Nd5 {[%clk 0:03:53.8]} 18. Nxd5 {[%clk
0:03:52.2]} 18... Bxd5 {[%clk 0:03:31.9]} 19. g3 {[%clk 0:03:51.6]} 19... Qe7
{[%clk 0:03:17.6]} 20. Ng2 {[%clk 0:03:46]} 20... Bc4 {[%clk 0:03:05.4]} 21. Rf2
{[%clk 0:03:43]} 21... a5 {[%clk 0:03:04.1]} 22. b3 {[%clk 0:03:41.8]} 22... Ba6
{[%clk 0:03:02.9]} 23. c4 {[%clk 0:03:40.1]} 23... d5 {[%clk 0:03:02]} 24. Rc1
{[%clk 0:03:29.9]} 24... Rac8 {[%clk 0:02:57.6]} 25. Qc2 {[%clk 0:03:23.5]}
25... c5 {[%clk 0:02:36.9]} 26. dxc5 {[%clk 0:03:19.6]} 26... bxc5 {[%clk
0:02:35.3]} 27. cxd5 {[%clk 0:03:18.4]} 27... exd5 {[%clk 0:02:32.9]} 28. Bxc5
{[%clk 0:03:08.6]} 28... Qb7 {[%clk 0:02:30.1]} 29. Rd2 {[%clk 0:02:51.1]} 29...
Rf7 {[%clk 0:02:21.6]} 30. Qb2 {[%clk 0:02:33.9]} 30... Rfc7 {[%clk 0:02:18]}
31. Rdc2 {[%clk 0:02:16.5]} 31... Bd3 {[%clk 0:02:15.8]} 32. Rc3 {[%clk
0:02:11.1]} 32... Rxc5 {[%clk 0:01:56.4]} 33. Rxc5 {[%clk 0:02:07.8]} 33... Rxc5
{[%clk 0:01:55.4]} 34. Rxc5 {[%clk 0:02:07.2]} 34... Bf8 {[%clk 0:01:54.7]} 35.
Rc1 {[%clk 0:01:54.2]} 35... Qb6+ {[%clk 0:01:51.7]} 36. Kh1 {[%clk 0:01:52.6]}
36... e3 {[%clk 0:01:44.3]} 37. Qc3 {[%clk 0:01:46.6]} 37... Be4 {[%clk
0:01:38.8]} 38. Qc7+ {[%clk 0:01:41.9]} 38... Qxc7 {[%clk 0:01:37.7]} 39. Rxc7+
{[%clk 0:01:41.8]} 39... Kg8 {[%clk 0:01:37.2]} 40. Kg1 {[%clk 0:01:40.3]} 40...
d4 {[%clk 0:01:36.7]} 41. Rc4 {[%clk 0:01:33.7]} 41... Bb4 {[%clk 0:00:42.2]}
42. Nxe3 {[%clk 0:01:19.7]} 42... dxe3 {[%clk 0:00:34.9]} 43. Rxe4 {[%clk
0:01:18.8]} 43... Bd2 {[%clk 0:00:30.7]} 44. Kf1 {[%clk 0:01:17.7]} 44... Kf7
{[%clk 0:00:29.7]} 45. Ke2 {[%clk 0:01:16.4]} 45... Ke6 {[%clk 0:00:28.8]} 46.
Rxe3 {[%clk 0:01:15.3]} 46... Bb4 {[%clk 0:00:27.8]} 47. Rd3 {[%clk 0:01:14.3]}
47... h5 {[%clk 0:00:27.2]} 48. Kf3 {[%clk 0:01:13.2]} 48... Kf5 {[%clk
0:00:26.8]} 49. Rd8 {[%clk 0:01:11.6]} 49... Be7 {[%clk 0:00:25.5]} 50. Ra8
{[%clk 0:01:08.8]} 50... h4 {[%clk 0:00:24.4]} 51. Rxa5 {[%clk 0:01:06.2]} 51...
g5 {[%clk 0:00:23.3]} 52. fxg5 {[%clk 0:01:04.7]} 52... Bxg5 {[%clk 0:00:19.2]}
53. e6+ {[%clk 0:01:03.8]} 53... Kg6 {[%clk 0:00:17.5]} 54. Rxg5+ {[%clk
0:01:02.5]} 54... Kxg5 {[%clk 0:00:15.7]} 55. e7 {[%clk 0:01:02.2]} 55... h3
{[%clk 0:00:15]} 56. e8=Q {[%clk 0:00:59.9]} 1-0

[Event "Live Chess"]
[Site "Chess.com"]
[Date "2024.06.02"]
[Round "-"]
[White "MagnersCarlsberg2870"]
[Black "Colm_Buckley"]
[Result "0-1"]
[WhiteElo "1753"]
[BlackElo "1884"]
[TimeControl "300"]
[EndTime "8:30:27 PDT"]
[Termination "Colm_Buckley won by resignation"]

1. d4 {[%clk 0:04:57.7]} 1... e6 {[%clk 0:04:58.8]} 2. Nd2 {[%clk 0:04:56.3]}
2... c5 {[%clk 0:04:56.8]} 3. e3 {[%clk 0:04:55.1]} 3... Nc6 {[%clk 0:04:54.1]}
4. Bd3 {[%clk 0:04:53.1]} 4... cxd4 {[%clk 0:04:51]} 5. exd4 {[%clk 0:04:52.1]}
5... Nxd4 {[%clk 0:04:47]} 6. Ngf3 {[%clk 0:04:51.3]} 6... Nxf3+ {[%clk
0:04:44.9]} 7. Qxf3 {[%clk 0:04:50.4]} 7... Nf6 {[%clk 0:04:44.5]} 8. O-O {[%clk
0:04:48.8]} 8... Be7 {[%clk 0:04:40.3]} 9. Ne4 {[%clk 0:04:47.7]} 9... Nxe4
{[%clk 0:04:26.1]} 10. Qxe4 {[%clk 0:04:46.1]} 10... d5 {[%clk 0:04:19.3]} 11.
Bb5+ {[%clk 0:04:43.7]} 11... Bd7 {[%clk 0:04:16.2]} 12. Bxd7+ {[%clk
0:04:42.5]} 12... Qxd7 {[%clk 0:04:14.4]} 13. Qg4 {[%clk 0:04:41.3]} 13... Bf6
{[%clk 0:04:08.3]} 14. Rd1 {[%clk 0:04:39.6]} 14... O-O {[%clk 0:03:58.4]} 15.
c3 {[%clk 0:04:35.7]} 15... Rad8 {[%clk 0:03:50.9]} 16. Be3 {[%clk 0:04:33.1]}
16... b6 {[%clk 0:03:45.5]} 17. Bd4 {[%clk 0:04:32]} 17... e5 {[%clk 0:03:34.2]}
18. Be3 {[%clk 0:04:30.6]} 18... Qxg4 {[%clk 0:03:32]} 0-1

[Event "Live Chess"]
[Site "Chess.com"]
[Date "2024.06.02"]
[Round "-"]
[White "ZatixMajor"]
[Black "HoarseyHorsey"]
[Result "1-0"]
[WhiteElo "2057"]
[BlackElo "1576"]
[TimeControl "300"]
[EndTime "8:30:28 PDT"]
[Termination "ZatixMajor won by checkmate"]

1. c4 {[%clk 0:04:57.6]} 1... Nf6 {[%clk 0:04:58.8]} 2. g3 {[%clk 0:04:56.8]}
2... d5 {[%clk 0:04:58.2]} 3. cxd5 {[%clk 0:04:54.9]} 3... Nxd5 {[%clk
0:04:56.9]} 4. Bg2 {[%clk 0:04:54.2]} 4... Bf5 {[%clk 0:04:55.8]} 5. e4 {[%clk
0:04:49.5]} 5... Be6 {[%clk 0:04:47.5]} 6. exd5 {[%clk 0:04:46.6]} 6... Bxd5
{[%clk 0:04:47.4]} 7. Nf3 {[%clk 0:04:45.6]} 7... Nc6 {[%clk 0:04:45.2]} 8. Nc3
{[%clk 0:04:44.5]} 8... Bc4 {[%clk 0:04:43.6]} 9. b3 {[%clk 0:04:33.3]} 9... Ba6
{[%clk 0:04:42.2]} 10. a4 {[%clk 0:04:09.7]} 10... e6 {[%clk 0:04:36.9]} 11. Nb5
{[%clk 0:04:07.6]} 11... Bc5 {[%clk 0:04:31.6]} 12. O-O {[%clk 0:04:01.1]} 12...
O-O {[%clk 0:04:30.6]} 13. d4 {[%clk 0:03:59.7]} 13... Bb4 {[%clk 0:04:26.6]}
14. Bf4 {[%clk 0:03:56.4]} 14... Rc8 {[%clk 0:04:20]} 15. Rc1 {[%clk 0:03:43.8]}
15... Bxb5 {[%clk 0:04:18.3]} 16. axb5 {[%clk 0:03:39.4]} 16... Ne7 {[%clk
0:04:12.8]} 17. Qd3 {[%clk 0:03:32.2]} 17... Nd5 {[%clk 0:04:11.5]} 18. Ng5
{[%clk 0:03:25.9]} 18... Nxf4 {[%clk 0:04:09.1]} 19. Qxh7# {[%clk 0:03:23.3]}
1-0

[Event "Live Chess"]
[Site "Chess.com"]
[Date "2024.06.02"]
[Round "-"]
[White "ivan_1968"]
[Black "ShanthamGrarks"]
[Result "0-1"]
[WhiteElo "1808"]
[BlackElo "1911"]
[TimeControl "300"]
[EndTime "8:30:53 PDT"]
[Termination "ShanthamGrarks won on time"]

1. d4 {[%clk 0:04:57.6]} 1... Nf6 {[%clk 0:04:55.5]} 2. c4 {[%clk 0:04:53.8]}
2... e5 {[%clk 0:04:53.4]} 3. dxe5 {[%clk 0:04:52.5]} 3... Ng4 {[%clk
0:04:52.5]} 4. Bf4 {[%clk 0:04:51.4]} 4... Nc6 {[%clk 0:04:49.8]} 5. Nf3 {[%clk
0:04:50.2]} 5... Bc5 {[%clk 0:04:49.4]} 6. e3 {[%clk 0:04:48.4]} 6... Qe7 {[%clk
0:04:47.7]} 7. a3 {[%clk 0:04:30.7]} 7... Ngxe5 {[%clk 0:04:34.5]} 8. Nxe5
{[%clk 0:04:27.8]} 8... Nxe5 {[%clk 0:04:32.8]} 9. b4 {[%clk 0:04:24.8]} 9...
Bd6 {[%clk 0:04:24.7]} 10. Be2 {[%clk 0:03:43.8]} 10... c5 {[%clk 0:04:18]} 11.
b5 {[%clk 0:03:30.1]} 11... Nxc4 {[%clk 0:04:01.4]} 12. Bxc4 {[%clk 0:03:08.8]}
12... Bxf4 {[%clk 0:03:59.4]} 13. Nc3 {[%clk 0:03:04.9]} 13... Be5 {[%clk
0:03:51.6]} 14. Nd5 {[%clk 0:02:54.8]} 14... Qh4 {[%clk 0:03:49]} 15. Rc1 {[%clk
0:02:52.3]} 15... O-O {[%clk 0:03:40]} 16. Qf3 {[%clk 0:02:24.5]} 16... Bb2
{[%clk 0:03:35.6]} 17. Rd1 {[%clk 0:02:18.5]} 17... Qxc4 {[%clk 0:03:31.9]} 18.
Qg3 {[%clk 0:01:19.8]} 18... Bc3+ {[%clk 0:03:24.4]} 19. Nxc3 {[%clk 0:01:14.6]}
19... Qxc3+ {[%clk 0:03:23.3]} 20. Kf1 {[%clk 0:01:09.8]} 20... Qc4+ {[%clk
0:03:20.3]} 21. Kg1 {[%clk 0:01:08.1]} 21... Qxb5 {[%clk 0:03:16.8]} 22. h4
{[%clk 0:01:07.1]} 22... h6 {[%clk 0:03:13.2]} 23. Qe5 {[%clk 0:01:02.5]} 23...
b6 {[%clk 0:03:07.1]} 24. Qe4 {[%clk 0:00:54.8]} 24... Ba6 {[%clk 0:03:01.7]}
25. Rh3 {[%clk 0:00:52.5]} 25... Rfe8 {[%clk 0:02:55.4]} 26. Qf4 {[%clk
0:00:39.5]} 26... Qe2 {[%clk 0:02:48]} 27. Rxd7 {[%clk 0:00:36.6]} 27... Bc4
{[%clk 0:02:39.2]} 28. Rg3 {[%clk 0:00:27.8]} 28... Kh8 {[%clk 0:01:47.3]} 29.
Rxf7 {[%clk 0:00:07]} 29... Bxf7 {[%clk 0:01:44.9]} 30. Qxf7 {[%clk 0:00:06.4]}
30... Rg8 {[%clk 0:01:41.1]} 31. Rg6 {[%clk 0:00:04.1]} 31... Qh5 {[%clk
0:01:34.3]} 0-1